fUST/lending_fUST_20250604
["ID","MTS","AMOUNT","RATE_DAILY","PERIOD"]
[364130645,1749013835040,-430.0,0.00019614,2]
[364130646,1749013835049,-290.63884412,0.00019614,2]
[364130647,1749013835058,-430.0,0.00019614,2]
[364130648,1749013835068,-444.40049639,0.00019614,2]
[364130649,1749013835087,-440.0,0.00019614,2]
[364130650,1749013835097,-443.47949826,0.00019614,2]
[364130651,1749013835106,-430.0,0.00019614,2]
[364130652,1749013835116,-430.84700564,0.00019614,2]
[364130653,1749013835125,-426.60772689,0.00019614,2]
[364130654,1749013835134,-435.99557493,0.00019614,2]
[364130655,1749013835143,-458.56114406,0.00019614,2]
[364130656,1749013835153,-500.0,0.00019614,2]
[364130657,1749013835162,-430.0,0.00019614,2]
[364130658,1749013835171,-430.0,0.00019614,2]
[364130659,1749013835180,-324.51326619,0.00019614,2]
[364130660,1749013835189,-430.0,0.00019614,2]
[364130661,1749013835198,-440.0,0.00019614,2]
[364130662,1749013835208,-503.47987014,0.00019614,2]
[364130663,1749013835217,-428.12685341,0.00019614,2]
[364130664,1749013835226,-440.0,0.00019614,2]
[364130665,1749013835236,-499.34,0.00019614,2]
[364130666,1749013835245,-440.0,0.00019614,2]
[364130667,1749013835255,-440.0,0.00019614,2]
[364130668,1749013835264,-207.2516467,0.00019614,2]
[364130669,1749013835273,-440.0,0.00019614,2]
[364130670,1749013835283,-360.95113158,0.00019614,2]
[364130671,1749013835293,-442.43467982,0.00019614,2]
[364130672,1749013835302,-424.468129,0.00019614,2]
[364130673,1749013835312,-440.0,0.00019614,2]
[364130674,1749013835322,-440.0,0.00019614,2]
[364130675,1749013835332,-440.0,0.00019614,2]
[364130676,1749013835342,-516.00162357,0.00019614,2]
[364130677,1749013835352,-440.0,0.00019614,2]
[364130678,1749013835363,-440.0,0.00019614,2]
[364130679,1749013835372,-410.64466907,0.00019614,2]
[364130680,1749013835487,-442.18629898,0.00019614,2]
[364130681,1749013835498,-440.0,0.00019614,2]
[364130682,1749013835510,-415.03227152,0.00019614,2]
[364130683,1749013835521,-409.49654014,0.00019614,2]
[364130684,1749013835531,-500.0,0.00019614,2]
[364130685,1749013835542,-409.54682402,0.00019614,2]
[364130686,1749013835553,-430.0,0.00019614,2]
[364130687,1749013835562,-440.0,0.00019614,2]
[364130688,1749013835572,-440.0,0.00019614,2]
[364130689,1749013835582,-411.01301031,0.00019614,2]
[364130690,1749013835591,-334.01460011,0.00019614,2]
[364130691,1749013835602,-430.0,0.00019614,2]
[364130692,1749013835613,-440.0,0.00019614,2]
[364130693,1749013835622,-449.17161289,0.00019614,2]
[364130694,1749013835632,-411.56354347,0.00019614,2]
[364130695,1749013835641,-440.0,0.00019614,2]
[364130696,1749013835652,-401.27672285,0.00019614,2]
[364130697,1749013835662,-588.09,0.00019614,2]
[364130698,1749013835671,-367.38960875,0.00019614,2]
[364130699,1749013835682,-452.52206794,0.00019614,2]
[364130700,1749013835692,-430.0,0.00019614,2]
[364130701,1749013835702,-452.14384119,0.00019614,2]
[364130702,1749013835712,-406.12676437,0.00019614,2]
[364130703,1749013835722,-430.0,0.00019614,2]
[364130704,1749013835731,-440.0,0.00019614,2]
[364130705,1749013835741,-400.0,0.00019614,2]
[364130706,1749013835750,-271.60993285,0.00019614,2]
[364130707,1749013835760,-404.28382579,0.00019614,2]
[364130708,1749013835770,-440.0,0.00019614,2]
[364130709,1749013835779,-430.0,0.00019614,2]
[364130710,1749013835788,-330.70590416,0.00019614,2]
[364130711,1749013835798,-440.0,0.00019614,2]
[364130712,1749013835807,-430.0,0.00019614,2]
[364130713,1749013835820,-408.90497436,0.00019614,2]
[364130714,1749013835830,-440.0,0.00019614,2]
[364130715,1749013835840,-440.0,0.00019614,2]
[364130716,1749013835849,-440.0,0.00019614,2]
[364130717,1749013835858,-440.0,0.00019614,2]
[364130718,1749013835871,-440.0,0.00019614,2]
[364130719,1749013835881,-440.0,0.00019614,2]
[364130720,1749013835891,-440.0,0.00019614,2]
[364130721,1749013835900,-453.69908247,0.00019614,2]
[364130722,1749013835910,-437.73858858,0.00019614,2]
[364130723,1749013835920,-440.0,0.00019614,2]
[364130724,1749013835930,-433.95735444,0.00019614,2]
[364130725,1749013835940,-403.14301129,0.00019614,2]
[364130726,1749013835949,-409.89065275,0.00019614,2]
[364130727,1749013835959,-430.0,0.00019614,2]
[364130728,1749013835969,-412.21178151,0.00019614,2]
[364130729,1749013835978,-411.49138356,0.00019614,2]
[364130730,1749013835988,-442.3611084,0.00019614,2]
[364130731,1749013835997,-440.0,0.00019614,2]
[364130732,1749013836006,-454.73281423,0.00019614,2]
[364130733,1749013836016,-427.17713552,0.00019614,2]
[364130734,1749013836026,-414.07075414,0.00019614,2]
[364130735,1749013836035,-440.0,0.00019614,2]
[364130736,1749013836045,-440.0,0.00019614,2]
[364130737,1749013836055,-453.78592043,0.00019614,2]
[364130738,1749013836065,-430.0,0.00019614,2]
[364130739,1749013836074,-440.0,0.00019614,2]
[364130740,1749013836084,-438.62895571,0.00019614,2]
[364130741,1749013836093,-440.0,0.00019614,2]
[364130742,1749013836102,-440.0,0.00019614,2]
[364130743,1749013836114,-430.0,0.00019614,2]
[364130744,1749013836123,-156.587,0.00019657,2]
[364130745,1749013836132,-162.380719,0.00019712,2]
[364130746,1749013836142,-168.3888056,0.00019767,2]
[364130747,1749013836152,-160.0,0.00019789,2]
[364130748,1749013836162,-160.0,0.00019789,2]
[364130749,1749013836171,-229.45591648,0.00019789,2]
[364130750,1749013836181,-212.90465545,0.00019789,2]
[364130751,1749013836190,-174.61919141,0.00019822,2]
[364130752,1749013836201,-269.29,0.00019863,2]
[364130753,1749013836211,-440.0,0.00019863,2]
[364130754,1749013836221,-440.0,0.00019863,2]
[364130755,1749013836231,-440.0,0.00019863,2]
[364130756,1749013836241,-277.92730104,0.00019877,2]
[364130757,1749013836250,-440.0,0.00019885,2]
[364130758,1749013836260,-440.0,0.00019885,2]
[364130759,1749013836269,-410.74165306,0.00019885,2]
[364130760,1749013836279,-440.0,0.00019885,2]
[364130761,1749013836289,-440.0,0.00019885,2]
[364130762,1749013836299,-440.0,0.00019885,2]
[364130763,1749013836308,-426.49164404,0.00019885,2]
[364130764,1749013836317,-440.0,0.00019885,2]
[364130765,1749013836327,-440.0,0.00019887,2]
[364130766,1749013836336,-440.0,0.00019887,2]
[364130767,1749013836346,-420.0,0.00019887,2]
[364130768,1749013836356,-440.0,0.00019887,2]
[364130769,1749013836367,-440.0,0.00019887,2]
[364130770,1749013836377,-440.0,0.00019887,2]
[364130771,1749013836386,-554.15,0.00019887,2]
[364130772,1749013836396,-440.0,0.00019887,2]
[364130773,1749013836406,-440.0,0.00019887,2]
[364130774,1749013836416,-440.0,0.00019887,2]
[364130775,1749013836426,-440.0,0.00019887,2]
[364130776,1749013836440,-440.0,0.00019887,2]
[364130777,1749013836451,-440.0,0.00019887,2]
[364130778,1749013836461,-440.0,0.00019887,2]
[364130779,1749013836471,-589.0,0.00019887,2]
[364130780,1749013836482,-440.0,0.00019887,2]
[364130781,1749013836493,-420.0,0.00019887,2]
[364130782,1749013836502,-440.0,0.00019887,2]
[364130783,1749013836511,-440.0,0.00019887,2]
[364130784,1749013836520,-440.0,0.00019887,2]
[364130785,1749013836534,-437.18489493,0.00019887,2]
[364130786,1749013836546,-440.0,0.00019887,2]
[364130787,1749013836556,-420.0,0.00019887,2]
[364130788,1749013836565,-440.0,0.00019887,2]
[364130789,1749013836575,-245.95747286,0.00019887,2]
[364130790,1749013836585,-420.0,0.00019887,2]
[364130791,1749013836594,-432.95478278,0.00019887,2]
[364130792,1749013836604,-425.00602734,0.00019887,2]
[364130793,1749013836614,-420.0,0.00019887,2]
[364130794,1749013836624,-440.0,0.00019887,2]
[364130795,1749013836634,-253.08,0.00019887,2]
[364130796,1749013836643,-440.0,0.00019887,2]
[364130797,1749013836653,-440.0,0.00019887,2]
[364130798,1749013836664,-440.0,0.00019887,2]
[364130799,1749013836674,-461.37969676,0.00019887,2]
[364130800,1749013836684,-440.0,0.00019887,2]
[364130801,1749013836694,-440.0,0.00019887,2]
[364130802,1749013836703,-315.57,0.00019888,2]
[364130803,1749013836713,-522.25775566,0.00019888,2]
[364130804,1749013836723,-449.4195045,0.00019888,2]
[364130805,1749013836732,-420.0,0.00019888,2]
[364130806,1749013836742,-420.0,0.00019888,2]
[364130807,1749013836752,-420.0,0.00019888,2]
[364130808,1749013836762,-533.32600223,0.00019888,2]
[364130809,1749013836771,-440.0,0.00019888,2]
[364130810,1749013836781,-158.24831806,0.00019888,2]
[364130811,1749013836791,-420.0,0.00019888,2]
[364130812,1749013836800,-344.13332259,0.00019888,2]
[364130813,1749013836810,-440.0,0.00019888,2]
[364130814,1749013836819,-487.77790784,0.00019888,2]
[364130815,1749013836831,-436.85156411,0.00019888,2]
[364130817,1749013836840,-420.93585546,0.00019888,2]
[364130818,1749013836850,-450.39564442,0.00019888,2]
[364130819,1749013836860,-453.82136979,0.00019888,2]
[364130820,1749013836870,-492.66291963,0.00019888,2]
[364130821,1749013836880,-440.0,0.00019888,2]
[364130822,1749013836890,-440.0,0.00019888,2]
[364130823,1749013836899,-420.0,0.00019888,2]
[364130824,1749013836909,-440.0,0.00019888,2]
[364130825,1749013836919,-440.0,0.00019888,2]
[364130826,1749013836928,-440.0,0.00019888,2]
[364130827,1749013836938,-453.35736995,0.00019888,2]
[364130828,1749013836948,-463.80293826,0.00019888,2]
[364130829,1749013836957,-318.16,0.00019888,2]
[364130830,1749013836967,-191.88,0.00019888,2]
[364130831,1749013836977,-440.0,0.00019888,2]
[364130832,1749013836987,-492.19409214,0.00019888,2]
[364130833,1749013836996,-440.0,0.00019888,2]
[364130834,1749013837006,-440.0,0.00019888,2]
[364130835,1749013837015,-440.0,0.00019888,2]
[364130836,1749013837025,-445.82626205,0.00019888,2]
[364130837,1749013837036,-440.0,0.00019888,2]
[364130838,1749013837046,-431.6,0.00019888,2]
[364130839,1749013837056,-420.0,0.00019888,2]
[364130840,1749013837066,-440.0,0.00019888,2]
[364130841,1749013837076,-216.9805444,0.00019888,2]
[364130842,1749013837086,-500.0,0.00019888,2]
[364130843,1749013837095,-420.0,0.00019888,2]
[364130844,1749013837105,-420.0,0.00019888,2]
[364130845,1749013837115,-440.0,0.00019888,2]
[364130846,1749013837125,-440.0,0.00019888,2]
[364130847,1749013837135,-440.0,0.00019888,2]
[364130848,1749013837144,-420.0,0.00019888,2]
[364130849,1749013837154,-291.1216326,0.00019888,2]
[364130850,1749013837165,-420.0,0.00019888,2]
[364130851,1749013837174,-420.0,0.00019888,2]
[364130852,1749013837184,-420.0,0.00019888,2]
[364130853,1749013837194,-440.0,0.00019888,2]
[364130854,1749013837203,-440.0,0.00019888,2]
[364130855,1749013837213,-186.56,0.00019888,2]
[364130856,1749013837223,-447.11,0.00019888,2]
[364130857,1749013837233,-440.0,0.00019888,2]
[364130858,1749013837243,-440.0,0.00019888,2]
[364130859,1749013837253,-440.0,0.00019888,2]
[364130860,1749013837264,-440.0,0.00019888,2]
[364130861,1749013837274,-440.0,0.00019888,2]
[364130862,1749013837284,-433.42923369,0.00019888,2]
[364130863,1749013837294,-440.0,0.00019888,2]
[364130864,1749013837303,-229.75521147,0.00019892,2]
[364130865,1749013837313,-699.34783782,0.000199,2]
[364130866,1749013837323,-461.81919041,0.0001999,2]
[364130867,1749013837332,-208.604,0.0001999,2]
[364130868,1749013837342,-44843.53602667,0.0001999,2]
[364130869,1749013837352,-440.0,0.0001999,2]
[364130870,1749013837362,-500.0,0.0001999,2]
[364130871,1749013837372,-440.0,0.0001999,2]
[364130872,1749013837382,-440.0,0.0001999,2]
[364130873,1749013837392,-440.0,0.0001999,2]
[364130874,1749013837402,-440.0,0.0001999,2]
[364130875,1749013837412,-440.0,0.0001999,2]
[364130876,1749013837421,-430.0,0.0001999,2]
[364130877,1749013837434,-440.0,0.0001999,2]
[364130878,1749013837444,-440.0,0.0001999,2]
[364130879,1749013837453,-440.0,0.0001999,2]
[364130880,1749013837463,-440.0,0.0001999,2]
[364130881,1749013837473,-440.0,0.0001999,2]
[364130882,1749013837482,-447.97,0.0001999,2]
[364130883,1749013837492,-400.0,0.00019991,2]
[364130884,1749013837502,-430.0,0.00019991,2]
[364130885,1749013837512,-440.0,0.00019991,2]
[364130886,1749013837522,-430.0,0.00019991,2]
[364130887,1749013837531,-306.15165961,0.00019991,2]
[364130888,1749013837541,-430.0,0.00019991,2]
[364130889,1749013837551,-440.0,0.00019991,2]
[364130890,1749013837560,-430.0,0.00019991,2]
[364130891,1749013837570,-430.0,0.00019991,2]
[364130892,1749013837579,-533.43,0.00019991,2]
[364130893,1749013837589,-412.15048422,0.00019991,2]
[364130894,1749013837599,-500.0,0.00019991,2]
[364130895,1749013837609,-440.0,0.00019991,2]
[364130896,1749013837620,-440.0,0.00019991,2]
[364130897,1749013837630,-430.0,0.00019991,2]
[364130898,1749013837639,-430.0,0.00019991,2]
[364130899,1749013837650,-440.0,0.00019991,2]
[364130900,1749013837659,-347.26798086,0.00019991,2]
[364130901,1749013837669,-440.0,0.00019991,2]
[364130902,1749013837679,-411.91153829,0.00019991,2]
[364130903,1749013837689,-512.52,0.00019991,2]
[364130904,1749013837699,-440.0,0.00019991,2]
[364130905,1749013837709,-440.0,0.00019991,2]
[364130906,1749013837719,-440.0,0.00019991,2]
[364130907,1749013837731,-440.0,0.00019991,2]
[364130908,1749013837741,-440.0,0.00019991,2]
[364130909,1749013837751,-440.0,0.00019991,2]
[364130910,1749013837761,-440.0,0.00019991,2]
[364130911,1749013837771,-440.0,0.00019991,2]
[364130912,1749013837780,-430.0,0.00019991,2]
[364130913,1749013837790,-411.27567292,0.00019991,2]
[364130914,1749013837800,-430.0,0.00019991,2]
[364130915,1749013837810,-440.0,0.00019991,2]
[364130916,1749013837914,-456.91237626,0.00019991,2]
[364130917,1749013837925,-440.0,0.00019991,2]
[364130918,1749013837935,-440.0,0.00019991,2]
[364130919,1749013837944,-430.0,0.00019991,2]
[364130920,1749013837953,-440.0,0.00019991,2]
[364130921,1749013837962,-440.0,0.00019991,2]
[364130922,1749013837970,-440.0,0.00019991,2]
[364130923,1749013837977,-440.0,0.00019991,2]
[364130924,1749013837985,-500.0,0.00019991,2]
[364130925,1749013837994,-500.0,0.00019991,2]
[364130926,1749013838003,-566.33456407,0.00019991,2]
[364130927,1749013838010,-430.0,0.00019991,2]
[364130928,1749013838020,-430.0,0.00019991,2]
[364130929,1749013838027,-415.18448536,0.00019991,2]
[364130930,1749013838035,-416.30234873,0.00019991,2]
[364130931,1749013838043,-440.0,0.00019991,2]
[364130932,1749013838050,-440.0,0.00019991,2]
[364130933,1749013838057,-408.77794614,0.00019991,2]
[364130934,1749013838065,-430.0,0.00019992,2]
[364130935,1749013838073,-430.0,0.00019992,2]
[364130936,1749013838080,-435.32756588,0.00019992,2]
[364130937,1749013838088,-430.0,0.00019992,2]
[364130938,1749013838096,-430.0,0.00019992,2]
[364130939,1749013838104,-420.50570069,0.00019992,2]
[364130940,1749013838111,-430.0,0.00019992,2]
[364130941,1749013838118,-404.05032106,0.00019992,2]
[364130942,1749013838126,-433.70871508,0.00019992,2]
[364130943,1749013838134,-440.14937493,0.00019992,2]
[364130944,1749013838142,-414.24578622,0.00019992,2]
[364130945,1749013838148,-407.25482203,0.00019992,2]
[364130946,1749013838157,-430.0,0.00019992,2]
[364130947,1749013838164,-407.41649613,0.00019992,2]
[364130948,1749013838172,-441.49367117,0.00019992,2]
[364130949,1749013838179,-428.73071087,0.00019992,2]
[364130950,1749013838186,-430.0,0.00019992,2]
[364130951,1749013838193,-446.27852992,0.00019992,2]
[364130953,1749013838200,-404.42995992,0.00019992,2]
[364130955,1749013838208,-261.31754549,0.00019992,2]
[364130956,1749013838216,-439.3817157,0.00019992,2]
[364130957,1749013838224,-440.0,0.00019992,2]
[364130958,1749013838231,-430.0,0.00019992,2]
[364130959,1749013838239,-435.36763368,0.00019992,2]
[364130960,1749013838245,-374.90971732,0.00019992,2]
[364130961,1749013838256,-445.9387551,0.00019992,2]
[364130962,1749013838266,-440.0,0.00019992,2]
[364130964,1749013838275,-408.59242071,0.00019992,2]
[364130965,1749013838287,-413.94049186,0.00019992,2]
[364130966,1749013838298,-440.0,0.00019992,2]
[364130967,1749013838308,-440.0,0.00019992,2]
[364130968,1749013838319,-535.70988207,0.00019992,2]
[364130970,1749013838328,-421.31768024,0.00019992,2]
[364130971,1749013838338,-420.79302257,0.00019992,2]
[364130972,1749013838348,-440.0,0.00019992,2]
[364130973,1749013838358,-430.0,0.00019992,2]
[364130974,1749013838369,-311.03993656,0.00019992,2]
[364130975,1749013838378,-412.02557043,0.00019992,2]
[364130976,1749013838388,-440.0,0.00019992,2]
[364130977,1749013838398,-407.81997453,0.00019992,2]
[364130978,1749013838410,-439.65895311,0.00019992,2]
[364130979,1749013838421,-406.79503389,0.00019992,2]
[364130980,1749013838435,-440.0,0.00019992,2]
[364130982,1749013838444,-369.19518826,0.00019992,2]
[364130984,1749013838455,-430.0,0.00019992,2]
[364130986,1749013838465,-440.0,0.00019992,2]
[364130988,1749013838477,-339.39075827,0.00019992,2]
[364130990,1749013838487,-407.36378751,0.00019992,2]
[364130992,1749013838497,-435.69824456,0.00019992,2]
[364130994,1749013838507,-442.40230064,0.00019992,2]
[364130996,1749013838519,-430.0,0.00019992,2]
[364130998,1749013838529,-422.98183294,0.00019992,2]
[364131000,1749013838538,-440.0,0.00019992,2]
[364131002,1749013838547,-440.0,0.00019992,2]
[364131004,1749013838557,-440.0,0.00019992,2]
[364131006,1749013838566,-174.40973811,0.00019992,2]
[364131008,1749013838575,-440.0,0.00019992,2]
[364131010,1749013838585,-440.0,0.00019992,2]
[364131012,1749013838595,-440.0,0.00019992,2]
[364131014,1749013838606,-176.44515258,0.00019992,2]
[364131016,1749013838615,-440.0,0.00019992,2]
[364131018,1749013838625,-440.0,0.00019992,2]
[364131019,1749013838634,-440.0,0.00019992,2]
[364131020,1749013838644,-440.0,0.00019992,2]
[364131021,1749013838653,-440.0,0.00019992,2]
[364131022,1749013838663,-434.81180808,0.00019992,2]
[364131023,1749013838672,-442.40779008,0.00019992,2]
[364131024,1749013838682,-440.0,0.00019992,2]
[364131025,1749013838691,-440.0,0.00019992,2]
[364131026,1749013838700,-283.15379785,0.00019992,2]
[364131027,1749013838709,-440.0,0.00019992,2]
[364131029,1749013838719,-440.0,0.00019992,2]
[364131031,1749013838728,-421.90771098,0.00019992,2]
[364131033,1749013838738,-413.48936981,0.00019992,2]
[364131035,1749013838747,-430.0,0.00019992,2]
[364131037,1749013838755,-440.0,0.00019992,2]
[364131039,1749013838764,-430.0,0.00019992,2]
[364131041,1749013838773,-440.0,0.00019992,2]
[364131043,1749013838783,-421.90306188,0.00019992,2]
[364131045,1749013838792,-440.0,0.00019992,2]
[364131047,1749013838802,-443.53354353,0.00019992,2]
[364131049,1749013838811,-458.32348441,0.00019992,2]
[364131051,1749013838822,-423.95709827,0.00019992,2]
[364131053,1749013838832,-440.0,0.00019992,2]
[364131055,1749013838842,-451.64405142,0.00019992,2]
[364131057,1749013838851,-440.0,0.00019992,2]
[364131059,1749013838860,-440.0,0.00019992,2]
[364131061,1749013838870,-440.0,0.00019992,2]
[364131063,1749013838881,-412.67648568,0.00019992,2]
[364131065,1749013838891,-440.0,0.00019992,2]
[364131067,1749013838904,-417.95004742,0.00019992,2]
[364131070,1749013838918,-417.91262611,0.00019992,2]
[364131072,1749013838932,-1129.46735052,0.00019992,2]
[364131075,1749013838945,-352.92825749,0.00019992,2]
[364131077,1749013838956,-417.43682646,0.00019992,2]
[364131079,1749013838968,-430.0,0.00019992,2]
[364131082,1749013838982,-447.61368472,0.00019992,2]
[364131084,1749013838995,-438.12037596,0.00019992,2]
[364131087,1749013839008,-471.62965092,0.00019992,2]
[364131089,1749013839023,-437.86755453,0.00019992,2]
[364131091,1749013839035,-442.48529307,0.00019992,2]
[364131094,1749013839048,-444.88577309,0.00019992,2]
[364131096,1749013839061,-409.56097393,0.00019992,2]
[364131098,1749013839074,-440.0,0.00019992,2]
[364131101,1749013839087,-430.0,0.00019992,2]
[364131103,1749013839099,-430.0,0.00019992,2]
[364131105,1749013839111,-430.0,0.00019992,2]
[364131108,1749013839124,-422.93632722,0.00019992,2]
[364131110,1749013839136,-440.0,0.00019992,2]
[364131113,1749013839150,-500.0,0.00019992,2]
[364131115,1749013839162,-419.14851591,0.00019992,2]
[364131117,1749013839174,-414.98312937,0.00019992,2]
[364131119,1749013839184,-243.75542663,0.00019992,2]
[364131121,1749013839195,-440.0,0.00019992,2]
[364131124,1749013839207,-440.0,0.00019992,2]
[364131126,1749013839220,-440.0,0.00019992,2]
[364131128,1749013839232,-440.0,0.00019992,2]
[364131131,1749013839245,-440.0,0.00019992,2]
[364131133,1749013839257,-445.91647368,0.00019992,2]
[364131135,1749013839270,-500.0,0.00019992,2]
[364131138,1749013839284,-419.00329191,0.00019992,2]
[364131140,1749013839296,-444.10591411,0.00019992,2]
[364131143,1749013839310,-440.0,0.00019992,2]
[364131145,1749013839321,-440.0,0.00019992,2]
[364131147,1749013839331,-412.97171181,0.00019992,2]
[364131149,1749013839341,-430.0,0.00019992,2]
[364131151,1749013839353,-315.13760285,0.00019992,2]
[364131154,1749013839368,-341.45448135,0.00019992,2]
[364131156,1749013839380,-440.0,0.00019993,2]
[364131159,1749013839393,-384.06644218,0.00019993,2]
[364131161,1749013839403,-576.9283881,0.00019993,2]
[364131163,1749013839414,-448.49724678,0.00019993,2]
[364131165,1749013839425,-440.0,0.00019993,2]
[364131168,1749013839441,-574.35974314,0.00019993,2]
[364131170,1749013839452,-440.0,0.00019993,2]
[364131172,1749013839463,-440.0,0.00019993,2]
[364131174,1749013839473,-440.0,0.00019993,2]
[364131176,1749013839485,-440.0,0.00019993,2]
[364131178,1749013839496,-440.0,0.00019993,2]
[364131181,1749013839507,-440.0,0.00019993,2]
[364131183,1749013839518,-440.0,0.00019993,2]
[364131185,1749013839529,-276.26725567,0.00019993,2]
[364131187,1749013839541,-440.0,0.00019993,2]
[364131189,1749013839553,-430.0,0.00019995,2]
[364131192,1749013839564,-430.0,0.00019995,2]
[364131194,1749013839575,-1002.0,0.0002,2]
[364131196,1749013839588,-440.0,0.0002,7]
[364131198,1749013839599,-428.20626775,0.0002,7]
[364131200,1749013839610,-699.34783759,0.00020072,2]
[364131203,1749013839622,-221.43926187,0.00020101,2]
[364131205,1749013839634,-419.37128976,0.00020136,2]
[364131207,1749013839645,-440.0,0.00020136,2]
[364131209,1749013839657,-523.64,0.00020159,2]
[364131212,1749013839669,-440.0,0.00020159,2]
[364131214,1749013839680,-440.0,0.00020159,2]
[364131216,1749013839690,-440.0,0.00020159,2]
[364131218,1749013839702,-440.0,0.00020159,2]
[364131220,1749013839714,-440.0,0.00020159,2]
[364131222,1749013839724,-410.0,0.00020161,2]
[364131225,1749013839737,-238.18,0.00020161,2]
[364131227,1749013839748,-410.0,0.00020161,2]
[364131229,1749013839758,-440.0,0.00020161,2]
[364131231,1749013839770,-440.0,0.00020161,2]
[364131234,1749013839782,-554.15,0.00020161,2]
[364131236,1749013839793,-421.27121487,0.00020161,2]
[364131238,1749013839804,-440.0,0.00020161,2]
[364131240,1749013839814,-440.0,0.00020161,2]
[364131242,1749013839826,-440.0,0.00020161,2]
[364131244,1749013839836,-440.0,0.00020161,2]
[364131247,1749013839847,-440.0,0.00020161,2]
[364131249,1749013839858,-440.0,0.00020161,2]
[364131251,1749013839870,-440.0,0.00020161,2]
[364131253,1749013839881,-440.0,0.00020161,2]
[364131255,1749013839893,-440.0,0.00020161,2]
[364131258,1749013839904,-440.0,0.00020161,2]
[364131260,1749013839915,-284.22,0.00020161,2]
[364131262,1749013839926,-440.0,0.00020161,2]
[364131264,1749013839937,-440.0,0.00020161,2]
[364131266,1749013839948,-440.0,0.00020161,2]
[364131269,1749013839960,-440.0,0.00020161,2]
[364131271,1749013839971,-249.58600549,0.00020161,2]
[364131273,1749013839983,-440.0,0.00020161,2]
[364131275,1749013839995,-440.0,0.00020161,2]
[364131278,1749013840006,-440.0,0.00020162,2]
[364131280,1749013840017,-410.0,0.00020162,2]
[364131282,1749013840028,-302.91,0.00020162,2]
[364131284,1749013840039,-440.0,0.00020162,2]
[364131286,1749013840050,-316.17725696,0.00020162,2]
[364131288,1749013840062,-440.0,0.00020162,2]
[364131291,1749013840073,-410.0,0.00020162,2]
[364131293,1749013840084,-440.0,0.00020162,2]
[364131295,1749013840095,-440.0,0.00020162,2]
[364131297,1749013840107,-221.73533407,0.00020162,2]
[364131299,1749013840119,-577.39716575,0.00020162,2]
[364131302,1749013840130,-449.62792418,0.00020162,2]
[364131306,1749013840142,-440.0,0.00020162,2]
[364131309,1749013840151,-440.0,0.00020162,2]
[364131312,1749013840160,-440.0,0.00020162,2]
[364131315,1749013840170,-225.6,0.00020162,2]
[364131347,1749013840321,-440.0,0.00020162,2]
[364131351,1749013840338,-440.0,0.00020162,2]
[364131354,1749013840347,-410.0,0.00020162,2]
[364131357,1749013840357,-440.0,0.00020162,2]
[364131360,1749013840367,-437.67069498,0.00020162,2]
[364131363,1749013840377,-440.0,0.00020162,2]
[364131366,1749013840388,-440.0,0.00020162,2]
[364131369,1749013840398,-410.0,0.00020162,2]
[364131372,1749013840408,-221.667924,0.00020187,2]
[364131375,1749013840418,-699.34783759,0.00020245,2]
[364131378,1749013840427,-500.0,0.00020247,2]
[364131382,1749013840443,-440.0,0.00020264,2]
[364131385,1749013840453,-500.0,0.00020264,2]